{"text_format":"2","workbook":"xlsx","n_sheets":3,"sheets":["Лист1","Лист2","Лист3"],"not_rendered":{"charts":0,"images":0,"macros":0,"external_links":0,"defined_names":1,"comments":0,"pivot_tables":0},"unopened":[],"bounds":{"document_bytes":16777216,"sheet_cells":100000,"run_cost":"one","rows_first":2000,"rows_last":500,"rows_between":2000,"halvings":0,"cell_chars":16384,"cell_head_chars":4096},"cells_cut":0,"cells_raw":0,"read":"whole","date_system":"1900"}

{"sheet":"Лист1","index":0,"n_rows":255,"n_cols":20,"rows_kept":255,"cut":false,"hidden":false,"merged":[[1,0,1,18],[3,4,3,18],[4,4,4,5],[4,6,4,18],[7,0,7,18],[250,0,250,18],[3,0,5,0],[3,1,5,1],[3,2,5,2],[3,3,5,3]]}
[]
["Отчет по платным услугам, оказываемым учреждениями социального обслуживания"]
[null,"Наименование организации"]
["№п/п","Наименование","объем платных услуг, оказанных подведомственными учреждениями на         месяц (нарастающим итогом сначала года) тыс.руб.","в том числе: объем платных услуг, оказанных подведомственными учреждениями за          месяц (отчетный месяц) тыс.руб."]
[{"$nulls":4},"Количество оказанных услуг за плату",null,"  "]
[{"$nulls":4},"ВСЕГО (нарастающим итогом)","за отчетный месяц","ВСЕГО (нарастающим итогом)","январь ","Февраль","Март","Апрель","Май","Июнь","Июль","Август","Сентябрь","Октябрь","Ноябрь","Декабрь"]
[null,"ВСЕГО:  СОЦИАЛЬНЫЕ И ДОПОЛНИТЕЛЬНЫЕ УСЛУГИ",{"$f":"C252+C250","v":0},{"$f":"D252+D250","v":0},{"$f":"E252+E250","v":0},{"$f":"F252+F250","v":0},{"$f":"G252+G250","v":0},{"$f":"H252+H250","v":0},{"$f":"I252+I250","v":0},{"$f":"J252+J250","v":0},{"$f":"K252+K250","v":0},{"$f":"L252+L250","v":0},{"$f":"M252+M250","v":0},{"$f":"N252+N250","v":{"$error":"#VALUE!"}},{"$f":"O252+O250","v":0},{"$f":"P252+P250","v":0},{"$f":"Q252+Q250","v":0},{"$f":"R252+R250","v":0},{"$f":"S252+S250","v":0}]
["СОЦИАЛЬНЫЕ УСЛУГИ"]
[null,"I. Форма социального обслуживания на дому",{"$f":"C10+C25+C38+C48+C61+C67+C76+C82","v":0},{"$f":"D10+D25+D38+D48+D61+D67+D76+D82","v":0},{"$f":"E10+E25+E38+E48+E61+E67+E76+E82","v":0},{"$f":"F10+F25+F38+F48+F61+F67+F76+F82","v":0},{"$f":"G10+G25+G38+G48+G61+G67+G76+G82","v":0},{"$nulls":11},{"$f":"S10+S25+S38+S48+S61+S67+S76+S82","v":0}]
[null,"1. Социально-бытовые услуги",{"$f":"C11+C12+C13+C14+C15+C16+C17+C18+C19+C20+C21+C22+C23+C24","v":0},{"$f":"D11+D12+D13+D14+D15+D16+D17+D18+D19+D20+D21+D22+D23+D24","v":0},{"$f":"E11+E12+E13+E14+E15+E16+E17+E18+E19+E20+E21+E22+E23+E24","v":0},{"$f":"F11+F12+F13+F14+F15+F16+F17+F18+F19+F20+F21+F22+F23+F24","v":0},{"$f":"G11+G12+G13+G14+G15+G16+G17+G18+G19+G20+G21+G22+G23+G24","v":0},{"$nulls":11},{"$f":"S11+S12+S13+S14+S15+S16+S17+S18+S19+S20+S21+S22+S23+S24","v":0}]
["1.1.","Социальный патронаж"]
["1.2.","Покупка за счет средств получателя социальных услуг и доставка на дом продуктов питания, промышленных товаров первой необходимости, средств санитарии и гигиены, средств ухода, книг, газет, журналов"]
["1.3.","Помощь в приготовлении пищи"]
["1.4.","Помощь в приеме пищи (кормление)"]
["1.5.","Оплата за счет средств получателя социальных услуг жилищно-коммунальных услуг и услуг связи"]
["1.6.","Сдача за счет средств получателя социальных услуг вещей в стирку, химчистку, ремонт, обратная их доставка"]
["1.7.","Покупка за счет средств получателя социальных услуг топлива (в жилых помещениях без центрального отопления и (или) водоснабжения), топка печей, доставка воды"]
["1.8.","Организация помощи в проведении ремонта жилых помещений"]
["1.9.","Уборка жилых помещений"]
["1.10.","Обеспечение кратковременного присмотра за детьми"]
["1.11.","Отправка за счет средств получателя социальных услуг почтовой корреспонденции"]
["1.12.","Предоставление гигиенических услуг лицам, не способным по состоянию здоровья или в силу возраста полностью или частично самостоятельно осуществлять за собой уход"]
["1.13.","Содействие в организации обучения детей в образовательных организациях"]
["1.14.","Помощь в организации летнего отдыха и оздоровления детей из семей, находящихся в социально опасном положении"]
[null,"2. Социально-медицинские услуги",{"$f":"C26+C27+C28+C29+C30+C31+C32+C33+C34+C35+C36+C37","v":0},{"$f":"D26+D27+D28+D29+D30+D31+D32+D33+D34+D35+D36+D37","v":0},{"$f":"E26+E27+E28+E29+E30+E31+E32+E33+E34+E35+E36+E37","v":0},{"$f":"F26+F27+F28+F29+F30+F31+F32+F33+F34+F35+F36+F37","v":0},{"$f":"G26+G27+G28+G29+G30+G31+G32+G33+G34+G35+G36+G37","v":0},{"$nulls":11},{"$f":"S26+S27+S28+S29+S30+S31+S32+S33+S34+S35+S36+S37","v":0}]
["2.1.","Выполнение процедур, связанных с сохранением здоровья получателей социальных услуг (измерение температуры тела, артериального давления, контроль за приемом лекарств и др.)"]
["2.2.","Проведение оздоровительных мероприятий"]
["2.3.","Систематическое наблюдение за получателями социальных услуг в целях выявления отклонений"]
["2.4.","Консультирование по социально-медицинским вопросам (поддержания и сохранения здоровья получателей социальных услуг, проведения оздоровительных мероприятий, наблюдения за получателями социальных услуг в целях выявления отклонений в состоянии их здоровья)"]
["2.5.","Содействие в обеспечении по заключению врачей лекарственными средствами и изделиями медицинского назначения"]
["2.6.","Содействие в прохождении медико-социальной экспертизы"]
["2.7.","Содействие в госпитализации по медицинским показаниям в медицинские организации"]
["2.8.","Содействие в получении путевки на санаторно-курортное лечение"]
["2.9.","Содействие в получении зубопротезной и протезно-ортопедической помощи, а также в обеспечении техническими средствами реабилитации"]
["2.10.","Проведение занятий, обучающих здоровому образу жизни"]
["2.11.","Проведение занятий по адаптивной физической культуре"]
["2.12.","Содействие в бесплатном оказании медицинской помощи в объеме территориальной программы государственных гарантий оказания гражданам Российской Федерации бесплатной медицинской помощи:"]
[null,"3. Социально-психологические услуги",{"$f":"C39+C40+C41+C42+C43+C44+C45+C46+C47","v":0},{"$f":"D39+D40+D41+D42+D43+D44+D45+D46+D47","v":0},{"$f":"E39+E40+E41+E42+E43+E44+E45+E46+E47","v":0},{"$f":"F39+F40+F41+F42+F43+F44+F45+F46+F47","v":0},{"$f":"G39+G40+G41+G42+G43+G44+G45+G46+G47","v":0},{"$nulls":11},{"$f":"S39+S40+S41+S42+S43+S44+S45+S46+S47","v":0}]
["3.1.","Социально-психологическое консультирование, в том числе по вопросам внутрисемейных отношений:"]
["3.2.","Психологическая диагностика и обследование личности:"]
["3.3.","Психологическая помощь и поддержка, в том числе гражданам, осуществляющим уход на дому за тяжелобольными получателями социальных услуг:"]
["3.4.","Социально-психологический патронаж"]
["3.5.","Психологическая коррекция"]
["3.6.","Психологические тренинги:"]
["3.7.","Преодоление семейных конфликтов:"]
["3.8.","Содействие восстановлению утраченных контактов с семьей, внутри семьи"]
["3.9.","Оказание консультационной психологической помощи анонимно, в том числе экстренной психологической с использованием телефона доверия"]
[null,"4. Социально-педагогические услуги",{"$f":"C49+C50+C51+C52+C53+C54+C55+C56+C57+C58+C59+C60","v":0},{"$f":"D49+D50+D51+D52+D53+D54+D55+D56+D57+D58+D59+D60","v":0},{"$f":"E49+E50+E51+E52+E53+E54+E55+E56+E57+E58+E59+E60","v":0},{"$f":"F49+F50+F51+F52+F53+F54+F55+F56+F57+F58+F59+F60","v":0},{"$f":"G49+G50+G51+G52+G53+G54+G55+G56+G57+G58+G59+G60","v":0},{"$nulls":11},{"$f":"S49+S50+S51+S52+S53+S54+S55+S56+S57+S58+S59+S60","v":0}]
["4.1.","Содействие в обучении детей и подростков по школьной программе"]
["4.2.","Обучение родственников практическим навыкам общего ухода за тяжелобольными получателями социальных услуг, получателями социальных услуг, имеющими ограничения жизнедеятельности, в том числе детьми-инвалидами"]
["4.3.","Организация помощи родителям или законным представителям детей-инвалидов, воспитываемых дома, в обучении таких детей навыкам самообслуживания, общения и контроля, направленных на развитие личности"]
["4.4.","Социально-педагогическая коррекция, включая диагностику и консультирование"]
["4.5.","Формирование позитивных интересов (в том числе в сфере досуга) получателей социальных услуг"]
["4.6.","Организация досуга (праздники, экскурсии и другие культурные мероприятия)"]
["4.7.","Создание условий для дошкольного воспитания детей и получения школьного образования по специальным программам"]
["4.8.","Налаживание межличностных и внутрисемейных отношений"]
["4.9.","Социально-педагогический патронаж"]
["4.10.","Социально-педагогическое консультирование"]
["4.11.","Обучение инвалидов по зрению письму по Брайлю"]
["4.12.","Услуги по переводу на язык жестов при реализации индивидуальной программы реабилитации инвалидов (для инвалидов по слуху)"]
[null,"5. Социально-трудовые услуги",{"$f":"C62+C63+C64+C65+C66","v":0},{"$f":"D62+D63+D64+D65+D66","v":0},{"$f":"E62+E63+E64+E65+E66","v":0},{"$f":"F62+F63+F64+F65+F66","v":0},{"$f":"G62+G63+G64+G65+G66","v":0},{"$nulls":11},{"$f":"S62+S63+S64+S65+S66","v":0}]
["5.1.","Проведение мероприятий по использованию трудовых возможностей и обучению доступным профессиональным навыкам"]
["5.2.","Обучение основам домоводства (приготовление пищи, мелкий ремонт одежды, уход за квартирой и другое)"]
["5.3.","Оказание помощи в трудоустройстве, в том числе подростков в каникулярное время"]
["5.4.","Организация помощи в получении образования и (или) квалификации инвалидами (детьми-инвалидами) в соответствии с их способностями"]
["5.5.","Проведение мероприятий по обучению доступным профессиональным навыкам в целях социально-трудовой реабилитации, восстановления личностного и социального статуса"]
[null,"6. Социально-правовые услуги",{"$f":"C68+C69+C70+C71+C72+C73+C74+C75","v":0},{"$f":"D68+D69+D70+D71+D72+D73+D74+D75","v":0},{"$f":"E68+E69+E70+E71+E72+E73+E74+E75","v":0},{"$f":"F68+F69+F70+F71+F72+F73+F74+F75","v":0},{"$f":"G68+G69+G70+G71+G72+G73+G74+G75","v":0},{"$nulls":11},{"$f":"S68+S69+S70+S71+S72+S73+S74+S75","v":0}]
["6.1.","Оказание помощи в оформлении и восстановлении документов получателей социальных услуг"]
["6.2.","Оказание помощи в получении юридических услуг"]
["6.3.","Оказание бесплатной юридической помощи в соответствии с действующим законодательством"]
["6.4.","Оказание помощи в защите прав и законных интересов получателей социальных услуг"]
["6.5.","Содействие в получении установленных законодательством мер социальной поддержки"]
["6.6.","Оказание помощи по вопросам пенсионного обеспечения и предоставления других социальных выплат"]
["6.7.","Консультирование по вопросам, связанным с соблюдением и защитой прав и законных интересов получателей социальных услуг"]
["6.8.","Содействие лицам без определенного места жительства, находящимся в организациях социального обслуживания Московской области, в оформлении регистрации по месту пребывания в территориальных органах Федеральной миграционной службы по Московской области"]
[null,"7. Услуги в целях повышения коммуникативного потенциала получателей социальных услуг, имеющих ограничение жизнедеятельности, в том числе детей-инвалидов, семей и детей, находящихся в трудной жизненной ситуации",{"$f":"C77+C78+C79+C80+C81","v":0},{"$f":"D77+D78+D79+D80+D81","v":0},{"$f":"E77+E78+E79+E80+E81","v":0},{"$f":"F77+F78+F79+F80+F81","v":0},{"$f":"G77+G78+G79+G80+G81","v":0},{"$nulls":11},{"$f":"S77+S78+S79+S80+S81","v":0}]
["7.1.","Обучение инвалидов (детей-инвалидов) пользованию средствами ухода и техническими средствами реабилитации"]
["7.2.","Проведение социально-реабилитационных мероприятий в сфере социального обслуживания, в том числе в соответствии с индивидуальной программой реабилитации получателей социальной услуги"]
["7.3.","Обучение навыкам поведения в быту и общественных местах"]
["7.4.","Формирование у детей навыков общения, общежитейских навыков и умений"]
["7.5.","Оказание помощи в обучении навыкам компьютерной грамотности"]
[null,"8. Срочные социальные услуги",{"$f":"C83+C84+C85+C86+C87+C88","v":0},{"$f":"D83+D84+D85+D86+D87+D88","v":0},{"$f":"E83+E84+E85+E86+E87+E88","v":0},{"$f":"F83+F84+F85+F86+F87+F88","v":0},{"$f":"G83+G84+G85+G86+G87+G88","v":0},{"$nulls":11},{"$f":"S83+S84+S85+S86+S87+S88","v":0}]
["8.1.","Обеспечение бесплатным горячим питанием или наборами продуктов"]
["8.2.","Обеспечение одеждой, обувью и другими предметами первой необходимости"]
["8.3.","Содействие в получении временного жилого помещения"]
["8.4.","Содействие в получении юридической помощи в целях защиты прав и законных интересов получателей социальных услуг"]
["8.5.","Содействие в получении экстренной психологической помощи с привлечением к этой работе психологов и священнослужителей"]
["8.6.","Содействие в сборе и оформлении документов на получение социального обслуживания на дому"]
[null,"II. Полустационарная форма социального обслуживания",{"$f":"C90+C101+C112+C122+C135+C141+C150+C156","v":0},{"$f":"D90+D101+D112+D122+D135+D141+D150+D156","v":0},{"$f":"E90+E101+E112+E122+E135+E141+E150+E156","v":0},{"$f":"F90+F101+F112+F122+F135+F141+F150+F156","v":0},{"$f":"G90+G101+G112+G122+G135+G141+G150+G156","v":0},{"$nulls":11},{"$f":"S90+S101+S112+S122+S135+S141+S150+S156","v":0}]
[null,"1. Социально-бытовые услуги",{"$f":"C91+C92+C93+C94+C95+C96+C97+C98+C99+C100","v":0},{"$f":"D91+D92+D93+D94+D95+D96+D97+D98+D99+D100","v":0},{"$f":"E91+E92+E93+E94+E95+E96+E97+E98+E99+E100","v":0},{"$f":"F91+F92+F93+F94+F95+F96+F97+F98+F99+F100","v":0},{"$f":"G91+G92+G93+G94+G95+G96+G97+G98+G99+G100","v":0},{"$nulls":11},{"$f":"S91+S92+S93+S94+S95+S96+S97+S98+S99+S100","v":0}]
["1.1.","Предоставление площади жилых помещений согласно утвержденным нормативам"]
["1.2.","Предоставление в пользование мебели согласно утвержденным нормативам"]
["1.3.","Предоставление помещений для организации реабилитационных мероприятий, трудотерапии, учебной деятельности, культурного и бытового обслуживания"]
["1.4.","Уборка жилых помещений и мест общего пользования"]
["1.5.","Помощь в приеме пищи (кормление)"]
["1.6.","Организация досуга и отдыха, в том числе обеспечение книгами, журналами, газетами, настольными играми, проведение экскурсий"]
["1.7.","Обеспечение питанием, в том числе диетическим (по медицинским показаниям) согласно утвержденным нормам"]
["1.8.","Обеспечение мягким инвентарем (одеждой, обувью, нательным бельем и постельными принадлежностями) согласно утвержденным нормативам"]
["1.9.","Отправка за счет средств получателя социальных услуг почтовой корреспонденции"]
["1.10.","Предоставление гигиенических услуг лицам, неспособным по состоянию здоровья или в силу возраста полностью или частично самостоятельно осуществлять за собой уход"]
[null,"2. Социально-медицинские услуги",{"$f":"C102+C103+C104+C105+C106+C107+C108+C109+C110+C111","v":0},{"$f":"D102+D103+D104+D105+D106+D107+D108+D109+D110+D111","v":0},{"$f":"E102+E103+E104+E105+E106+E107+E108+E109+E110+E111","v":0},{"$f":"F102+F103+F104+F105+F106+F107+F108+F109+F110+F111","v":0},{"$f":"G102+G103+G104+G105+G106+G107+G108+G109+G110+G111","v":0},{"$nulls":11},{"$f":"S102+S103+S104+S105+S106+S107+S108+S109+S110+S111","v":0}]
["2.1.","Выполнение процедур, связанных с сохранением здоровья получателей социальных услуг (измерение температуры тела, артериального давления, контроль за приемом лекарств и др.)"]
["2.2.","Выполнение санитарно-гигиенических процедур (купание, стрижка волос, ногтей, дезинфекция белья, одежды и др.)"]
["2.3.","Проведение оздоровительных мероприятий"]
["2.4.","Систематическое наблюдение за получателями социальных услуг в целях выявления отклонений в состоянии их здоровья"]
["2.5.","Консультирование по социально-медицинским вопросам (поддержания и сохранения здоровья получателей социальных услуг, проведения оздоровительных мероприятий, наблюдения за получателями социальных услуг в целях выявления отклонений в состоянии их здоровья)"]
["2.6.","Содействие в госпитализации по медицинским показаниям в медицинские организации"]
["2.7.","Содействие в обеспечении по заключению врачей лекарственными средствами и изделиями медицинского назначения"]
["2.8.","Проведение занятий, обучающих здоровому образу жизни"]
["2.9.","Проведение занятий по адаптивной физической культуре"]
["2.10.","Содействие в бесплатном оказании медицинской помощи в объеме территориальной программы государственных гарантий оказания гражданам Российской Федерации бесплатной медицинской помощи"]
[null,"3. Социально-психологические услуги",{"$f":"C113+C114+C115+C116+C117+C118+C119+C120+C121","v":0},{"$f":"D113+D114+D115+D116+D117+D118+D119+D120+D121","v":0},{"$f":"E113+E114+E115+E116+E117+E118+E119+E120+E121","v":0},{"$f":"F113+F114+F115+F116+F117+F118+F119+F120+F121","v":0},{"$f":"G113+G114+G115+G116+G117+G118+G119+G120+G121","v":0},{"$nulls":11},{"$f":"S113+S114+S115+S116+S117+S118+S119+S120+S121","v":0}]
["3.1.","Социально-психологическое консультирование, в том числе по вопросам внутрисемейных отношений"]
["3.2.","Психологическая диагностика и обследование личности"]
["3.3.","Психологическая помощь и поддержка, в том числе гражданам, осуществляющим уход на дому за тяжелобольными получателями социальных услуг"]
["3.4.","Социально-психологический патронаж"]
["3.5.","Психологическая коррекция"]
["3.6.","Психологические тренинги"]
["3.7.","Преодоление семейных конфликтов"]
["3.8.","Содействие восстановлению утраченных контактов с семьей, внутри семьи"]
["3.9.","Оказание консультационной психологической помощи анонимно, в том числе экстренной психологической с использованием телефона доверия"]
[null,"4. Социально-педагогические услуги",{"$f":"C123+C124+C125+C126+C127+C128+C129+C130+C131+C132+C133+C134","v":0},{"$f":"D123+D124+D125+D126+D127+D128+D129+D130+D131+D132+D133+D134","v":0},{"$f":"E123+E124+E125+E126+E127+E128+E129+E130+E131+E132+E133+E134","v":0},{"$f":"F123+F124+F125+F126+F127+F128+F129+F130+F131+F132+F133+F134","v":0},{"$f":"G123+G124+G125+G126+G127+G128+G129+G130+G131+G132+G133+G134","v":0},{"$nulls":11},{"$f":"S123+S124+S125+S126+S127+S128+S129+S130+S131+S132+S133+S134","v":0}]
["4.1.","Содействие в обучении детей и подростков по школьной программе"]
["4.2.","Обучение родственников практическим навыкам общего ухода за тяжелобольными получателями социальных услуг, получателями социальных услуг, имеющими ограничения жизнедеятельности, в том числе детьми-инвалидами"]
["4.3.","Организация помощи родителям или законным представителям детей-инвалидов, воспитываемых дома, в обучении таких детей навыкам самообслуживания, общения и контроля, направленных на развитие личности"]
["4.4.","Социально-педагогическая коррекция, включая диагностику и консультирование"]
["4.5.","Формирование позитивных интересов (в том числе в сфере досуга) получателей социальных услуг"]
["4.6.","Организация досуга (праздники, экскурсии и другие культурные мероприятия)"]
["4.7.","Создание условий для дошкольного воспитания детей и получения школьного образования по специальным программам"]
["4.8.","Налаживание межличностных и внутрисемейных отношений"]
["4.9.","Социально-педагогический патронаж"]
["4.10.","Социально-педагогическое консультирование"]
["4.11.","Обучение инвалидов по зрению письму по Брайлю"]
["4.12.","Услуги по переводу на язык жестов при реализации индивидуальной программы реабилитации инвалидов (для инвалидов по слуху)"]
[null,"5. Социально-трудовые услуги",{"$f":"C136+C137+C138+C139+C140","v":0},{"$f":"D136+D137+D138+D139+D140","v":0},{"$f":"E136+E137+E138+E139+E140","v":0},{"$f":"F136+F137+F138+F139+F140","v":0},{"$f":"G136+G137+G138+G139+G140","v":0},{"$nulls":11},{"$f":"S136+S137+S138+S139+S140","v":0}]
["5.1.","Проведение мероприятий по использованию трудовых возможностей и обучению доступным: профессиональным навыкам"]
["5.2.","Обучение основам домоводства (приготовление пищи, мелкий ремонт одежды, уход за квартирой и другое)"]
["5.3.","Оказание помощи в трудоустройстве, в том числе подростков в каникулярное время"]
["5.4.","Организация помощи в получении образования и (или) квалификации инвалидами (детьми-инвалидами) в соответствии с их способностями"]
["5.5.","Проведение мероприятий по обучению доступным профессиональным навыкам в целях социально-трудовой реабилитации, восстановления личностного и социального статуса"]
[null,"6. Социально-правовые услуги",{"$f":"C142+C143+C144+C145+C146+C147+C148+C149","v":0},{"$f":"D142+D143+D144+D145+D146+D147+D148+D149","v":0},{"$f":"E142+E143+E144+E145+E146+E147+E148+E149","v":0},{"$f":"F142+F143+F144+F145+F146+F147+F148+F149","v":0},{"$f":"G142+G143+G144+G145+G146+G147+G148+G149","v":0},{"$nulls":11},{"$f":"S142+S143+S144+S145+S146+S147+S148+S149","v":0}]
["6.1.","Оказание помощи в оформлении и восстановлении документов получателей социальных услуг"]
["6.2.","Оказание помощи в получении юридических услуг"]
["6.3.","Оказание бесплатной юридической помощи в соответствии с действующим законодательством"]
["6.4.","Оказание помощи в защите прав и законных интересов получателей социальных услуг"]
["6.5.","Содействие в получении установленных законодательством мер социальной поддержки"]
["6.6.","Оказание помощи по вопросам пенсионного обеспечения и предоставления других социальных выплат"]
["6.7.","Консультирование по вопросам, связанным с соблюдением и защитой прав и законных интересов получателей социальных услуг"]
["6.8.","Содействие лицам без определенного места жительства, находящихся в организациях социального обслуживания Московской области, в оформлении регистрации по месту пребывания в территориальных органах Федеральной миграционной службы по Московской области"]
[null,"7. Услуги в целях повышения коммуникативного потенциала получателей социальных услуг, имеющих ограничение жизнедеятельности, в том числе детей-инвалидов, семей и детей, находящихся в трудной жизненной ситуации",{"$f":"C151+C152+C153+C154+C155","v":0},{"$f":"D151+D152+D153+D154+D155","v":0},{"$f":"E151+E152+E153+E154+E155","v":0},{"$f":"F151+F152+F153+F154+F155","v":0},{"$f":"G151+G152+G153+G154+G155","v":0},{"$nulls":11},{"$f":"S151+S152+S153+S154+S155","v":0}]
["7.1.","Обучение инвалидов (детей-инвалидов) пользованию средствами ухода и техническими средствами реабилитации"]
["7.2.","Проведение социально-реабилитационных мероприятий в сфере социального обслуживания, в том числе в соответствии с индивидуальной программой реабилитации получателей социальной услуги"]
["7.3.","Обучение навыкам поведения в быту и общественных местах"]
["7.4.","Формирование у детей навыков общения, общежитейских навыков и умений"]
["7.5.","Оказание помощи в обучении навыкам компьютерной грамотности"]
[null,"8. Срочные социальные услуги",{"$f":"C157+C158+C159+C160+C161+C162","v":0},{"$f":"D157+D158+D159+D160+D161+D162","v":0},{"$f":"E157+E158+E159+E160+E161+E162","v":0},{"$f":"F157+F158+F159+F160+F161+F162","v":0},{"$f":"G157+G158+G159+G160+G161+G162","v":0},{"$nulls":11},{"$f":"S157+S158+S159+S160+S161+S162","v":0}]
["8.1.","Обеспечение бесплатным горячим питанием или наборами продуктов услуги"]
["8.2.","Обеспечение одеждой, обувью и другими предметами первой необходимости"]
["8.3.","Содействие в получении временного жилого помещения"]
["8.4.","Содействие в получении юридической помощи в целях защиты прав и законных интересов получателей социальных услуг"]
["8.5.","Содействие в получении экстренной психологической помощи с привлечением к этой работе психологов и священнослужителей"]
["8.6.","Содействие в сборе и оформлении документов на получение социального обслуживания на дому, в полустационарной форме или в стационарной форме"]
[null,"III. Стационарная форма социального обслуживания",{"$f":"C164+C182+C199+C209+C222+C228+C237+C243","v":0},{"$f":"D164+D182+D199+D209+D222+D228+D237+D243","v":0},{"$f":"E164+E182+E199+E209+E222+E228+E237+E243","v":0},{"$f":"F164+F182+F199+F209+F222+F228+F237+F243","v":0},{"$f":"G164+G182+G199+G209+G222+G228+G237+G243","v":92982},{"$f":"H164+H182+H199+H209+H222+H228+H237+H243","v":12548},{"$f":"I164+I182+I199+I209+I222+I228+I237+I243","v":11288},{"$f":"J164+J182+J199+J209+J222+J228+J237+J243","v":12490},{"$f":"K164+K182+K199+K209+K222+K228+K237+K243","v":14353},{"$f":"L164+L182+L199+L209+L222+L228+L237+L243","v":13257},{"$f":"M164+M182+M199+M209+M222+M228+M237+M243","v":14915},{"$f":"N164+N182+N199+N209+N222+N228+N237+N243","v":14131},{"$f":"O164+O182+O199+O209+O222+O228+O237+O243","v":0},{"$f":"P164+P182+P199+P209+P222+P228+P237+P243","v":0},{"$f":"Q164+Q182+Q199+Q209+Q222+Q228+Q237+Q243","v":0},{"$f":"R164+R182+R199+R209+R222+R228+R237+R243","v":0},{"$f":"S164+S182+S199+S209+S222+S228+S237+S243","v":0}]
[null,"1. Социально-бытовые услуги",{"$f":"C165+C166+C167+C168+C169+C170+C171+C172+C173+C174+C175+C176+C177+C178+C179+C180+C181","v":0},{"$f":"D165+D166+D167+D168+D169+D170+D171+D172+D173+D174+D175+D176+D177+D178+D179+D180+D181","v":0},{"$f":"E165+E166+E167+E168+E169+E170+E171+E172+E173+E174+E175+E176+E177+E178+E179+E180+E181","v":0},{"$f":"F165+F166+F167+F168+F169+F170+F171+F172+F173+F174+F175+F176+F177+F178+F179+F180+F181","v":0},{"$f":"G165+G166+G167+G168+G169+G170+G171+G172+G173+G174+G175+G176+G177+G178+G179+G180+G181","v":30624},{"$f":"H165+H166+H167+H168+H169+H170+H171+H172+H173+H174+H175+H176+H177+H178+H179+H180+H181","v":4223},{"$f":"I165+I166+I167+I168+I169+I170+I171+I172+I173+I174+I175+I176+I177+I178+I179+I180+I181","v":3553},{"$f":"J165+J166+J167+J168+J169+J170+J171+J172+J173+J174+J175+J176+J177+J178+J179+J180+J181","v":4037},{"$f":"K165+K166+K167+K168+K169+K170+K171+K172+K173+K174+K175+K176+K177+K178+K179+K180+K181","v":4654},{"$f":"L165+L166+L167+L168+L169+L170+L171+L172+L173+L174+L175+L176+L177+L178+L179+L180+L181","v":4703},{"$f":"M165+M166+M167+M168+M169+M170+M171+M172+M173+M174+M175+M176+M177+M178+M179+M180+M181","v":4840},{"$f":"N165+N166+N167+N168+N169+N170+N171+N172+N173+N174+N175+N176+N177+N178+N179+N180+N181","v":4614},{"$f":"O165+O166+O167+O168+O169+O170+O171+O172+O173+O174+O175+O176+O177+O178+O179+O180+O181","v":0},{"$f":"P165+P166+P167+P168+P169+P170+P171+P172+P173+P174+P175+P176+P177+P178+P179+P180+P181","v":0},{"$f":"Q165+Q166+Q167+Q168+Q169+Q170+Q171+Q172+Q173+Q174+Q175+Q176+Q177+Q178+Q179+Q180+Q181","v":0},{"$f":"R165+R166+R167+R168+R169+R170+R171+R172+R173+R174+R175+R176+R177+R178+R179+R180+R181","v":0},{"$f":"S165+S166+S167+S168+S169+S170+S171+S172+S173+S174+S175+S176+S177+S178+S179+S180+S181","v":0}]
["1.1.","Предоставление площади жилого помещения согласно утвержденным нормативам",{"$nulls":4},{"$f":"SUM(H165:S165)","v":4022},580,476,529,588,622,597,630]
["1.2.","Предоставление помещений для организации реабилитационных и лечебных мероприятий, трудотерапии, учебной деятельности, культурного и бытового обслуживания",{"$nulls":4},{"$f":"SUM(H166:S166)","v":4022},580,476,529,588,622,597,630]
["1.3.","Предоставление в пользование мебели согласно утвержденным нормативам",{"$nulls":4},{"$f":"SUM(H167:S167)","v":4022},580,476,529,588,622,597,630]
["1.4.","Обеспечение питанием, в том числе диетическим (по медицинским показаниям) согласно утвержденным нормам",{"$nulls":4},{"$f":"SUM(H168:S168)","v":4022},580,476,529,588,622,597,630]
["1.5.","Обеспечение мягким инвентарем (одеждой, обувью, нательным бельем и постельными принадлежностями) согласно утвержденным нормативам",{"$nulls":4},{"$f":"SUM(H169:S169)","v":0},null,0,0,0,0,0,0]
["1.6.","Помощь в приеме пищи (кормление, в том числе через зонд)",{"$nulls":4},{"$f":"SUM(H170:S170)","v":2881},321,279,343,487,542,534,375,{"$nulls":5}," "]
["1.7.","Уборка жилого помещения и мест общего пользования",{"$nulls":4},{"$f":"SUM(H171:S171)","v":3294},377,397,495,487,542,534,462]
["1.8.","Предоставление гигиенических услуг лицам, не способным по состоянию здоровья или в силу возраста полностью или частично самостоятельно осуществлять за собой уход",{"$nulls":4},{"$f":"SUM(H172:S172)","v":0},null,0,0,0,0,0,0]
["1.9.","Организация досуга и отдыха, в том числе обеспечение книгами, журналами, газетами, настольными играми, проведение экскурсий",{"$nulls":4},{"$f":"SUM(H173:S173)","v":5256},761,587,674,870,667,904,793]
["1.10.","Создание условий для отправления религиозных обрядов",{"$nulls":4},{"$f":"SUM(H174:S174)","v":0},null,0,0,0,0,null,0]
["1.11.","Содействие в получении услуг, предоставляемых организациями торговли и связи",{"$nulls":4},{"$f":"SUM(H175:S175)","v":0},null,0,0,0,0,null,0]
["1.12.","Отправка за счет средств получателя социальных услуг почтовой корреспонденции",{"$nulls":4},{"$f":"SUM(H176:S176)","v":0},null,0,0,0,0,null,0]
["1.13.","Предоставление транспорта и/или сопровождающего для проезда к месту лечения, получения консультации, обучения",{"$nulls":4},{"$f":"SUM(H177:S177)","v":729},102,98,103,98,104,120,104]
["1.14.","Оказание прачечных услуг (стирка белья, глажка) и дезинфекция",{"$nulls":4},{"$f":"SUM(H178:S178)","v":2376},342,288,306,360,360,360,360]
["1.15.","Обеспечение сохранности личных вещей и ценностей, переданных поставщику социальных услуг на хранение",{"$nulls":4},{"$f":"SUM(H179:S179)","v":0},null,0,0,0,0,null,0]
["1.16.","Содействие в получении жилого помещения лицам, из числа детей сирот и детей, оставшихся без попечения родителей, которые по достижению совершеннолетия способны проживать самостоятельно, в случае их отказа от социального обслуживания",{"$nulls":4},{"$f":"SUM(H180:S180)","v":0},null,0,0,0,0,null,0]
["1.17.","Содействие в оказании ритуальных услуг",{"$nulls":4},{"$f":"SUM(H181:S181)","v":0},null,0,0,0,0,null,0]
[null,"2. Социально-медицинские услуги",{"$f":"C183+C184+C185+C186+C187+C188+C189+C190+C191+C192+C193+C194+C195+C196+C197+C198","v":0},{"$f":"D183+D184+D185+D186+D187+D188+D189+D190+D191+D192+D193+D194+D195+D196+D197+D198","v":0},{"$f":"E183+E184+E185+E186+E187+E188+E189+E190+E191+E192+E193+E194+E195+E196+E197+E198","v":0},{"$f":"F183+F184+F185+F186+F187+F188+F189+F190+F191+F192+F193+F194+F195+F196+F197+F198","v":0},{"$f":"G183+G184+G185+G186+G187+G188+G189+G190+G191+G192+G193+G194+G195+G196+G197+G198","v":25597},{"$f":"H183+H184+H185+H186+H187+H188+H189+H190+H191+H192+H193+H194+H195+H196+H197+H198","v":3615},{"$f":"I183+I184+I185+I186+I187+I188+I189+I190+I191+I192+I193+I194+I195+I196+I197+I198","v":3192},{"$f":"J183+J184+J185+J186+J187+J188+J189+J190+J191+J192+J193+J194+J195+J196+J197+J198","v":3492},{"$f":"K183+K184+K185+K186+K187+K188+K189+K190+K191+K192+K193+K194+K195+K196+K197+K198","v":3666},{"$f":"L183+L184+L185+L186+L187+L188+L189+L190+L191+L192+L193+L194+L195+L196+L197+L198","v":4043},{"$f":"M183+M184+M185+M186+M187+M188+M189+M190+M191+M192+M193+M194+M195+M196+M197+M198","v":4188},{"$f":"N183+N184+N185+N186+N187+N188+N189+N190+N191+N192+N193+N194+N195+N196+N197+N198","v":3401},{"$f":"O183+O184+O185+O186+O187+O188+O189+O190+O191+O192+O193+O194+O195+O196+O197+O198","v":0},{"$f":"P183+P184+P185+P186+P187+P188+P189+P190+P191+P192+P193+P194+P195+P196+P197+P198","v":0},{"$f":"Q183+Q184+Q185+Q186+Q187+Q188+Q189+Q190+Q191+Q192+Q193+Q194+Q195+Q196+Q197+Q198","v":0},{"$f":"R183+R184+R185+R186+R187+R188+R189+R190+R191+R192+R193+R194+R195+R196+R197+R198","v":0},{"$f":"S183+S184+S185+S186+S187+S188+S189+S190+S191+S192+S193+S194+S195+S196+S197+S198","v":0}]
["2.1.","Обеспечение ухода с учетом состояния здоровья",{"$nulls":4},{"$f":"SUM(H183:S183)","v":0},null,0,0,0,0,0,0]
["2.2.","Систематическое наблюдение за получателями социальных услуг для выявления отклонений в состоянии их здоровья",{"$nulls":4},{"$f":"SUM(H184:S184)","v":3616},500,444,511,570,594,625,372]
["2.3.","Выполнение процедур, связанных с сохранением здоровья получателей социальных услуг (измерение температуры тела, артериального давления, выполнение назначенных врачами медицинских процедур, контроль за приемом лекарств и др.)",{"$nulls":4},{"$f":"SUM(H185:S185)","v":3633},500,444,511,570,594,625,389]
["2.4.","Выполнение санитарно-гигиенических процедур (купание, стрижка волос, ногтей, дезинфекция белья, одежды и др.)",{"$nulls":4},{"$f":"SUM(H186:S186)","v":5589},830,715,832,867,800,780,765]
["2.5.","Проведение оздоровительных мероприятий",{"$nulls":4},{"$f":"SUM(H187:S187)","v":8027},1134,935,924,922,1295,1463,1354]
["2.6.","Организация прохождения диспансеризации",{"$nulls":4},{"$f":"SUM(H188:S188)","v":20},null,0,0,0,20,0,0]
["2.7.","Содействие в прохождении медико-социальной экспертизы",{"$nulls":4},{"$f":"SUM(H189:S189)","v":0},null,0,0,0,null,0,0]
["2.8.","Содействие в госпитализации по медицинским показаниям в медицинские организации",{"$nulls":4},{"$f":"SUM(H190:S190)","v":6},null,3,0,1,0,2,0]
["2.9.","Содействие в направлении по заключению врачей на санаторно-курортное лечение",{"$nulls":4},{"$f":"SUM(H191:S191)","v":0},null,0,0,0,0,0,0]
["2.10.","Содействие в получении зубопротезной и протезно-ортопедической помощи, а также в обеспечении техническими средствами реабилитации",{"$nulls":4},{"$f":"SUM(H192:S192)","v":0},null,0,0,0,null,0,0]
["2.11.","Консультирование по социально-медицинским вопросам (поддержания и сохранения здоровья получателей социальных услуг, проведения оздоровительных мероприятий, наблюдения за получателями социальных услуг для выявления отклонений в состоянии их здоровья)",{"$nulls":4},{"$f":"SUM(H193:S193)","v":2028},216,276,287,320,381,332,216]
["2.12.","Содействие в обеспечении по заключению врачей лекарственными  средствами и изделиями медицинского назначения",{"$nulls":4},{"$f":"SUM(H194:S194)","v":814},143,112,167,134,104,95,59]
["2.13.","Проведение занятий, обучающих здоровому образу жизни",{"$nulls":4},{"$f":"SUM(H195:S195)","v":1793},279,248,256,265,241,258,246]
["2.14.","Проведение занятий по адаптивной физической культуре",{"$nulls":4},{"$f":"SUM(H196:S196)","v":0},null,0,0,0,null,0,0]
["2.15.","Содействие в бесплатном оказании медицинской помощи в объеме территориальной программы государственных гарантий оказания гражданам Российской Федерации бесплатной медицинской помощи",{"$nulls":4},{"$f":"SUM(H197:S197)","v":0},null,0,0,0,0,0,0]
["2.16.","Содействие в оказании первичной медико-санитарной и стоматологической помощи",{"$nulls":4},{"$f":"SUM(H198:S198)","v":71},13,15,4,17,14,8,0]
[null,"3. Социально-психологические услуги",{"$f":"C200+C201+C202+C203+C204+C205+C206+C207+C208","v":0},{"$f":"D200+D201+D202+D203+D204+D205+D206+D207+D208","v":0},{"$f":"E200+E201+E202+E203+E204+E205+E206+E207+E208","v":0},{"$f":"F200+F201+F202+F203+F204+F205+F206+F207+F208","v":0},{"$f":"G200+G201+G202+G203+G204+G205+G206+G207+G208","v":1746},{"$f":"H200+H201+H202+H203+H204+H205+H206+H207+H208","v":212},{"$f":"I200+I201+I202+I203+I204+I205+I206+I207+I208","v":401},{"$f":"J200+J201+J202+J203+J204+J205+J206+J207+J208","v":331},{"$f":"K200+K201+K202+K203+K204+K205+K206+K207+K208","v":267},{"$f":"L200+L201+L202+L203+L204+L205+L206+L207+L208","v":103},{"$f":"M200+M201+M202+M203+M204+M205+M206+M207+M208","v":180},{"$f":"N200+N201+N202+N203+N204+N205+N206+N207+N208","v":252},{"$f":"O200+O201+O202+O203+O204+O205+O206+O207+O208","v":0},{"$f":"P200+P201+P202+P203+P204+P205+P206+P207+P208","v":0},{"$f":"Q200+Q201+Q202+Q203+Q204+Q205+Q206+Q207+Q208","v":0},{"$f":"R200+R201+R202+R203+R204+R205+R206+R207+R208","v":0},{"$f":"S200+S201+S202+S203+S204+S205+S206+S207+S208","v":0}]
["3.1.","Социально-психологическое консультирование, в том числе по вопросам внутрисемейных отношений",{"$nulls":4},{"$f":"SUM(H200:S200)","v":235},17,26,45,94,16,28,9]
["3.2.","Психологическая диагностика и обследование личности",{"$nulls":4},{"$f":"SUM(H201:S201)","v":391},41,90,81,65,15,28,71]
["3.3.","Психологическая помощь и поддержка, в том числе гражданам, осуществляющим уход на дому за тяжелобольными получателями социальных услуг",{"$nulls":4},{"$f":"SUM(H202:S202)","v":0},null,0,0,0,0,0,0]
["3.4.","Социально-психологический патронаж",{"$nulls":4},{"$f":"SUM(H203:S203)","v":0},null,0,0,0,0,0,0]
["3.5.","Психологическая коррекция",{"$nulls":4},{"$f":"SUM(H204:S204)","v":260},35,57,44,54,14,22,34]
["3.6.","Психологические тренинги",{"$nulls":4},{"$f":"SUM(H205:S205)","v":554},71,184,125,37,14,22,101]
["3.7.","Преодоление семейных конфликтов",{"$nulls":4},{"$f":"SUM(H206:S206)","v":148},3,44,36,17,6,5,37]
["3.8.","Содействие восстановлению утраченных контактов с семьей, внутри семьи",{"$nulls":4},{"$f":"SUM(H207:S207)","v":158},45,null,null,0,38,75,0]
["3.9.","Оказание консультационной психологической помощи анонимно, в том числе экстренной психологической с использованием телефона доверия",{"$nulls":4},{"$f":"SUM(H208:S208)","v":0},null,0,null,0,0,0,0]
[null,"4. Социально-педагогические услуги",{"$f":"C210+C211+C212+C213+C214+C215+C216+C217+C218+C219+C220+C221","v":0},{"$f":"D210+D211+D212+D213+D214+D215+D216+D217+D218+D219+D220+D221","v":0},{"$f":"E210+E211+E212+E213+E214+E215+E216+E217+E218+E219+E220+E221","v":0},{"$f":"F210+F211+F212+F213+F214+F215+F216+F217+F218+F219+F220+F221","v":0},{"$f":"G210+G211+G212+G213+G214+G215+G216+G217+G218+G219+G220+G221","v":17440},{"$f":"H210+H211+H212+H213+H214+H215+H216+H217+H218+H219+H220+H221","v":2513},{"$f":"I210+I211+I212+I213+I214+I215+I216+I217+I218+I219+I220+I221","v":2282},{"$f":"J210+J211+J212+J213+J214+J215+J216+J217+J218+J219+J220+J221","v":2180},{"$f":"K210+K211+K212+K213+K214+K215+K216+K217+K218+K219+K220+K221","v":2642},{"$f":"L210+L211+L212+L213+L214+L215+L216+L217+L218+L219+L220+L221","v":2310},{"$f":"M210+M211+M212+M213+M214+M215+M216+M217+M218+M219+M220+M221","v":2480},{"$f":"N210+N211+N212+N213+N214+N215+N216+N217+N218+N219+N220+N221","v":3033},{"$f":"O210+O211+O212+O213+O214+O215+O216+O217+O218+O219+O220+O221","v":0},{"$f":"P210+P211+P212+P213+P214+P215+P216+P217+P218+P219+P220+P221","v":0},{"$f":"Q210+Q211+Q212+Q213+Q214+Q215+Q216+Q217+Q218+Q219+Q220+Q221","v":0},{"$f":"R210+R211+R212+R213+R214+R215+R216+R217+R218+R219+R220+R221","v":0},{"$f":"S210+S211+S212+S213+S214+S215+S216+S217+S218+S219+S220+S221","v":0}]
["4.1.","Содействие в обучении детей и подростков по школьной программе",{"$nulls":4},{"$f":"SUM(H210:S210)","v":1617},326,266,273,414,316,null,22]
["4.2.","Обучение родственников практическим навыкам общего ухода за тяжелобольными получателями социальных услуг, получателями социальных услуг, имеющими ограничения жизнедеятельности, в том числе детьми-инвалидами",{"$nulls":4},{"$f":"SUM(H211:S211)","v":0},null,0,0,0,0,0,0]
["4.3.","Организация помощи родителям или законным представителям детей-инвалидов, воспитываемых дома, в обучении таких детей навыкам самообслуживания, общения и контроля, направленных на развитие личности",{"$nulls":4},{"$f":"SUM(H212:S212)","v":0},null,0,0,0,0,0,0]
["4.4.","Социально-педагогическая коррекция, включая диагностику и консультирование",{"$nulls":4},{"$f":"SUM(H213:S213)","v":884},78,153,104,111,82,94,262]
["4.5.","Формирование позитивных интересов (в том числе в сфере досуга) получателей социальных услуг",{"$nulls":4},{"$f":"SUM(H214:S214)","v":7287},1013,897,993,1141,925,1147,1171]
["4.6.","Организация досуга (праздники, экскурсии и другие культурные мероприятия)",{"$nulls":4},{"$f":"SUM(H215:S215)","v":3578},407,381,256,323,455,950,806]
["4.7.","Создание условий для дошкольного воспитания детей и получения школьного образования по специальным программам",{"$nulls":4},{"$f":"SUM(H216:S216)","v":3672},635,529,504,599,470,163,772]
["4.8.","Налаживание межличностных и внутрисемейных отношений",{"$nulls":4},{"$f":"SUM(H217:S217)","v":0},null,0,0,0,0,0,0,{"$nulls":5},"+"]
["4.9.","Социально-педагогический патронаж",{"$nulls":4},{"$f":"SUM(H218:S218)","v":0},null,0,0,0,0,0]
["4.10.","Социально-педагогическое консультирование",{"$nulls":4},{"$f":"SUM(H219:S219)","v":402},54,56,50,54,62,126]
["4.11.","Обучение инвалидов по зрению письму по Брайлю",{"$nulls":4},{"$f":"SUM(H220:S220)","v":0},null,null,0,0,0,0]
["4.12.","Услуги по переводу на язык жестов при реализации индивидуальной программы реабилитации инвалидов (для инвалидов по слуху)",{"$nulls":4},{"$f":"SUM(H221:S221)","v":0},null,null,0,0,0,0]
[null,"5. Социально-трудовые услуги",{"$f":"C223+C224+C225+C226+C227","v":0},{"$f":"D223+D224+D225+D226+D227","v":0},{"$f":"E223+E224+E225+E226+E227","v":0},{"$f":"F223+F224+F225+F226+F227","v":0},{"$f":"G223+G224+G225+G226+G227","v":3196},{"$f":"H223+H224+H225+H226+H227","v":454},{"$f":"I223+I224+I225+I226+I227","v":670},{"$f":"J223+J224+J225+J226+J227","v":437},{"$f":"K223+K224+K225+K226+K227","v":517},{"$f":"L223+L224+L225+L226+L227","v":171},{"$f":"M223+M224+M225+M226+M227","v":420},{"$f":"N223+N224+N225+N226+N227","v":527},{"$f":"O223+O224+O225+O226+O227","v":0},{"$f":"P223+P224+P225+P226+P227","v":0},{"$f":"Q223+Q224+Q225+Q226+Q227","v":0},{"$f":"R223+R224+R225+R226+R227","v":0},{"$f":"S223+S224+S225+S226+S227","v":0}]
["5.1.","Проведение мероприятий по использованию трудовых возможностей и обучению доступным профессиональным навыкам",{"$nulls":4},{"$f":"SUM(H223:S223)","v":1490},208,342,186,256,72,225,201]
["5.2.","Обучение основам домоводства (приготовление пищи, мелкий ремонт одежды, уход за квартирой и другое)",{"$nulls":4},{"$f":"SUM(H224:S224)","v":182},15,26,25,38,3,55,20]
["5.3.","Оказание помощи в трудоустройстве, в том числе подростков в каникулярное время",{"$nulls":4},{"$f":"SUM(H225:S225)","v":0},null,0,0,0,0,0,0]
["5.4.","Организация помощи в получении образования и (или) квалификации инвалидами (детьми-инвалидами) в соответствии с их способностями",{"$nulls":4},{"$f":"SUM(H226:S226)","v":0},null,0,0,0,0,0,0]
["5.5.","Проведение мероприятий по обучению доступным профессиональным навыкам в целях социально-трудовой реабилитации, восстановления личностного и социального статуса",{"$nulls":4},{"$f":"SUM(H227:S227)","v":1524},231,302,226,223,96,140,306,{"$nulls":5}," "]
[null,"6. Социально-правовые услуги",{"$f":"C229+C230+C231+C232+C233+C234+C235+C236","v":0},{"$f":"D229+D230+D231+D232+D233+D234+D235+D236","v":0},{"$f":"E229+E230+E231+E232+E233+E234+E235+E236","v":0},{"$f":"F229+F230+F231+F232+F233+F234+F235+F236","v":0},{"$f":"G229+G230+G231+G232+G233+G234+G235+G236","v":135},{"$f":"H229+H230+H231+H232+H233+H234+H235+H236","v":20},{"$f":"I229+I230+I231+I232+I233+I234+I235+I236","v":18},{"$f":"J229+J230+J231+J232+J233+J234+J235+J236","v":15},{"$f":"K229+K230+K231+K232+K233+K234+K235+K236","v":20},{"$f":"L229+L230+L231+L232+L233+L234+L235+L236","v":16},{"$f":"M229+M230+M231+M232+M233+M234+M235+M236","v":22},{"$f":"N229+N230+N231+N232+N233+N234+N235+N236","v":24},{"$f":"O229+O230+O231+O232+O233+O234+O235+O236","v":0},{"$f":"P229+P230+P231+P232+P233+P234+P235+P236","v":0},{"$f":"Q229+Q230+Q231+Q232+Q233+Q234+Q235+Q236","v":0},{"$f":"R229+R230+R231+R232+R233+R234+R235+R236","v":0},{"$f":"S229+S230+S231+S232+S233+S234+S235+S236","v":0}]
["6.1.","Оказание помощи в оформлении и восстановлении документов получателей социальных услуг",{"$nulls":4},{"$f":"SUM(H229:S229)","v":31},4,2,2,2,4,8,9]
["6.2.","Оказание помощи в получении юридических услуг",{"$nulls":4},{"$f":"SUM(H230:S230)","v":31},4,2,2,2,4,8,9]
["6.3.","Оказание бесплатной юридической помощи в соответствии с действующим законодательством",{"$nulls":4},{"$f":"SUM(H231:S231)","v":31},4,6,4,5,6,4,2]
["6.4.","Оказание помощи в защите прав и законных интересов получателей социальных услуг",{"$nulls":4},{"$f":"SUM(H232:S232)","v":0},null,0,0,0,0,0,0]
["6.5.","Содействие в получении установленных законодательством мер социальной поддержки",{"$nulls":4},{"$f":"SUM(H233:S233)","v":12},4,2,1,5,0,null,0]
["6.6.","Оказание помощи по вопросам пенсионного обеспечения и предоставления других социальных выплат",{"$nulls":4},{"$f":"SUM(H234:S234)","v":0},null,0,0,0,0,null,0]
["6.7.","Консультирование по вопросам, связанным с соблюдением и защитой прав и законных интересов получателей социальных услуг",{"$nulls":4},{"$f":"SUM(H235:S235)","v":30},4,6,6,6,2,2,4]
["6.8.","Содействие лицам без определенного места жительства, находящихся в организациях социального обслуживания Московской области, в оформлении регистрации по месту пребывания в территориальных органах Федеральной миграционной службы по Московской области",{"$nulls":4},{"$f":"SUM(H236:S236)","v":0},null,0,0,0,0,0,0]
[null,"7. Услуги в целях повышения коммуникативного потенциала получателей социальных услуг, имеющих ограничение жизнедеятельности, в том числе детей-инвалидов, семей и детей, находящихся в трудной жизненной ситуации",{"$f":"C238+C239+C240+C241+C242","v":0},{"$f":"D238+D239+D240+D241+D242","v":0},{"$f":"E238+E239+E240+E241+E242","v":0},{"$f":"F238+F239+F240+F241+F242","v":0},{"$f":"G238+G239+G240+G241+G242","v":14238},{"$f":"H238+H239+H240+H241+H242","v":1508},{"$f":"I238+I239+I240+I241+I242","v":1172},{"$f":"J238+J239+J240+J241+J242","v":1998},{"$f":"K238+K239+K240+K241+K242","v":2584},{"$f":"L238+L239+L240+L241+L242","v":1911},{"$f":"M238+M239+M240+M241+M242","v":2785},{"$f":"N238+N239+N240+N241+N242","v":2280},{"$f":"O238+O239+O240+O241+O242","v":0},{"$f":"P238+P239+P240+P241+P242","v":0},{"$f":"Q238+Q239+Q240+Q241+Q242","v":0},{"$f":"R238+R239+R240+R241+R242","v":0},{"$f":"S238+S239+S240+S241+S242","v":0}]
["7.1.","Обучение инвалидов (детей-инвалидов) пользованию средствами ухода и техническими средствами реабилитации",{"$nulls":4},{"$f":"SUM(H238:S238)","v":0},null,0,0,0,0,0,0]
["7.2.","Проведение социально-реабилитационных мероприятий в сфере социального обслуживания, в том числе в соответствии с индивидуальной программой реабилитации получателей социальной услуги",{"$nulls":4},{"$f":"SUM(H239:S239)","v":3051},null,0,652,842,499,536,522]
["7.3.","Обучение навыкам поведения в быту и общественных местах",{"$nulls":4},{"$f":"SUM(H240:S240)","v":5549},753,586,673,871,705,1082,879]
["7.4.","Формирование у детей навыков общения, общежитейских навыков и умений",{"$nulls":4},{"$f":"SUM(H241:S241)","v":5638},755,586,673,871,707,1167,879]
["7.5.","Оказание помощи в обучении навыкам компьютерной грамотности",{"$nulls":4},{"$f":"SUM(H242:S242)","v":0},null,null,0]
[null,"8. Срочные социальные услуги",{"$f":"C244+C245+C246+C247+C248+C249","v":0},{"$f":"D244+D245+D246+D247+D248+D249","v":0},{"$f":"E244+E245+E246+E247+E248+E249","v":0},{"$f":"F244+F245+F246+F247+F248+F249","v":0},{"$f":"G244+G245+G246+G247+G248+G249","v":6},{"$f":"H244+H245+H246+H247+H248+H249","v":3},{"$f":"I244+I245+I246+I247+I248+I249","v":0},{"$f":"J244+J245+J246+J247+J248+J249","v":0},{"$f":"K244+K245+K246+K247+K248+K249","v":3},{"$f":"L244+L245+L246+L247+L248+L249","v":0},{"$f":"M244+M245+M246+M247+M248+M249","v":0},{"$f":"N244+N245+N246+N247+N248+N249","v":0},{"$f":"O244+O245+O246+O247+O248+O249","v":0},{"$f":"P244+P245+P246+P247+P248+P249","v":0},{"$f":"Q244+Q245+Q246+Q247+Q248+Q249","v":0},{"$f":"R244+R245+R246+R247+R248+R249","v":0},{"$f":"S244+S245+S246+S247+S248+S249","v":0}]
["8.1.","Обеспечение бесплатным горячим питанием или наборами продуктов",{"$nulls":4},{"$f":"SUM(H244:S244)","v":2},1,0,0,1,0,0,0]
["8.2.","Обеспечение одеждой, обувью и другими предметами первой необходимости",{"$nulls":4},{"$f":"SUM(H245:S245)","v":2},1,0,0,1,0,0,0]
["8.3.","Содействие в получении временного жилого помещения",{"$nulls":4},{"$f":"SUM(H246:S246)","v":2},1,0,0,1,0,0,0]
["8.4.","Содействие в получении юридической помощи в целях защиты прав и законных интересов получателей социальных услуг",{"$nulls":4},{"$f":"SUM(H247:S247)","v":0},null,0,0,0,0,0,0]
["8.5.","Содействие в получении экстренной психологической помощи с привлечением к этой работе психологов и священнослужителей",{"$nulls":4},{"$f":"SUM(H248:S248)","v":0},null,0,0,0,0,0,0,{"$nulls":5}," "]
["8.6.","Содействие в сборе и оформлении документов на получение социального обслуживания на дому",{"$nulls":4},{"$f":"SUM(H249:S249)","v":0},null,0,0,0,0,0,0]
[null,"ИТОГО: СОЦИАЛЬНЫЕ УСЛУГИ",{"$f":"C9+C89+C163","v":0},{"$f":"D9+D89+D163","v":0},{"$f":"E9+E89+E163","v":0},{"$f":"F9+F89+F163","v":0},{"$nulls":7}," т"]
["ДОПОЛНИТЕЛЬНЫЕ УСЛУГИ"]
[null,"ИТОГО: ДОПОЛНИТЕЛЬНЫЕ УСЛУГИ",{"$f":"C253+C254+C255+C256+C257","v":0},{"$f":"D253+D254+D255+D256+D257","v":0},{"$f":"E253+E254+E255+E256+E257","v":0},{"$f":"F253+F254+F255+F256+F257","v":0},{"$f":"G253+G254+G255+G256+G257","v":0},{"$nulls":11},{"$f":"S253+S254+S255+S256+S257","v":0}]
["1."]
["2."]
["3."]

{"sheet":"Лист2","index":1,"n_rows":0,"n_cols":0,"rows_kept":0,"cut":false,"hidden":false,"merged":[]}

{"sheet":"Лист3","index":2,"n_rows":0,"n_cols":0,"rows_kept":0,"cut":false,"hidden":false,"merged":[]}